bitfinex/quotes_ETHUSD_20230119
["timestamp","ask_amount","ask_price","bid_price","bid_amount"]
[1674096186487,0.588,1523.7,1523.6,12.65886393]
[1674096186694,1.7743666,1523.7,1523.6,12.65886393]
[1674096188018,1.2760444,1523.7,1523.6,12.65886393]
[1674096188172,1.77453946,1523.7,1523.6,12.65886393]
[1674096193662,2.05507982,1523.7,1523.6,12.65886393]
[1674096197464,1.77453946,1523.7,1523.6,12.65886393]
[1674096198045,1.77452941,1523.7,1523.6,12.65886393]
[1674096199944,1.77452941,1523.7,1523.6,0.066]
[1674096200156,1.77452941,1523.7,1523.4,0.0959476]
[1674096200157,9.02397975,1523.7,1523.4,0.0959476]
[1674096200390,0.68803894,1523.5,1523.4,0.0299476]
[1674096200803,15.81579533,1523.6,1523.4,0.0299476]
[1674096202919,14.78373692,1523.6,1523.4,0.0299476]
[1674096203855,15.81579533,1523.6,1523.4,0.0299476]
[1674096204068,1.58157953,1523.5,1523.4,0.0299476]
[1674096207800,1.59043692,1523.6,1523.4,0.0299476]
[1674096207948,2.62249533,1523.6,1523.4,0.0299476]
[1674096208159,0.68803894,1523.5,1523.4,0.0299476]
[1674096208600,1.1863066,1523.5,1523.4,0.0299476]
[1674096208791,0.68803894,1523.5,1523.4,0.0299476]
[1674096209004,0.36884953,1523.5,1523.4,0.0299476]
[1674096210053,2.62249533,1523.6,1523.4,0.02719031]
[1674096210313,1.59043692,1523.6,1523.4,0.02719031]
[1674096210616,3.12074517,1523.6,1523.4,0.02719031]
[1674096210826,1.59043692,1523.6,1523.4,0.02719031]
[1674096211838,0.15904369,1523.5,1523.4,0.02719031]
[1674096212070,1.90108263,1523.5,1523.4,0.02719031]
[1674096212896,1.21304369,1523.5,1523.4,0.02719031]
[1674096213364,1.90108263,1523.5,1523.4,0.02719031]
[1674096213985,1.21304369,1523.5,1523.4,0.02719031]
[1674096214208,2.39925051,1523.5,1523.4,0.02719031]
[1674096215263,2.39922768,1523.5,1523.4,0.02719031]
[1674096219510,2.40122768,1523.5,1523.4,0.02719031]
[1674096219722,2.39922768,1523.5,1523.4,0.02719031]
[1674096227497,3.43128609,1523.5,1523.4,0.02719031]
[1674096229024,0.56080969,1523.4,1523.2,13.04139824]
[1674096232285,1.24884863,1523.4,1523.2,13.04139824]
[1674096233806,1.19884863,1523.4,1523.2,13.04139824]
[1674096234858,0.51080969,1523.4,1523.2,13.04139824]
[1674096235070,1.19884863,1523.4,1523.2,13.04139824]
[1674096239058,2.73017277,1523.4,1523.2,13.04139824]
[1674096239445,1.19884863,1523.4,1523.2,13.04139824]
[1674096239746,2.73017276,1523.4,1523.2,13.04139824]
[1674096239904,2.23090704,1523.4,1523.2,13.04139824]
[1674096242177,8.79523704,1523.4,1523.2,13.04139824]
[1674096242317,0.68803894,1523.3,1523.2,13.04139824]
[1674096243187,0.68803894,1523.3,1523.2,0.07679824]
[1674096243370,1.18733644,1523.3,1523.2,0.01079824]
[1674096254223,0.68803894,1523.3,1523.2,0.01079824]
[1674096254434,8.86123704,1523.4,1523.2,0.01079824]
[1674096254694,1.1870893,1523.3,1523.2,0.01079824]
[1674096257217,1.1870893,1523.3,1523.2,0.00819744]
[1674096258455,8.78383771,1523.3,1523.2,0.00819744]
[1674096258646,14.72648877,1523.3,1523.2,0.00819744]
[1674096258845,17.45121066,1523.3,1523.2,0.00819744]
[1674096259641,18.14012804,1523.3,1523.2,0.00819744]
[1674096260005,17.45121066,1523.3,1523.2,0.00819744]
[1674096260693,20.80183292,1523.3,1523.2,0.00819744]
[1674096261001,19.91970818,1523.3,1523.2,0.00819744]
[1674096261381,27.78250818,1523.3,1523.2,0.00819744]
[1674096261597,29.9592848,1523.3,1523.2,0.00819744]
[1674096263501,28.24112887,1523.3,1523.2,0.00819744]
[1674096264783,28.65059326,1523.3,1523.2,0.00819744]
[1674096266638,28.39279853,1523.3,1523.2,0.00819744]
[1674096267000,20.64661743,1523.3,1523.2,0.00819744]
[1674096267151,18.814863,1523.3,1523.2,0.00819744]
[1674096267360,11.444463,1523.3,1523.2,0.00819744]
[1674096268617,1.66265111,1523.3,1523.2,1.03819744]
[1674096268825,0.40946439,1523.3,1523.2,1.03819744]
[1674096269984,0.40946439,1523.3,1523.2,1.03]
[1674096273043,0.40946439,1523.3,1523.2,2.03]
[1674096273254,0.40946439,1523.3,1523.2,1.03]
[1674096274529,0.40946439,1523.3,1523.2,3.31393182]
[1674096274889,0.066,1523.5,1523.2,11.17605182]
[1674096275099,0.68813636,1523.7,1523.4,2.584]
[1674096275247,7.31670636,1523.8,1523.5,1.5554]
[1674096275456,7.31670636,1523.8,1523.5,1.297]
[1674096275457,8.34891163,1523.8,1523.5,1.297]
[1674096275769,0.75413636,1523.8,1523.5,1.297]
[1674096275980,0.68813636,1523.8,1523.6,1.297]
[1674096276225,0.68813636,1523.8,1523.6,2.083082]
[1674096277556,1.72034163,1523.9,1523.6,2.083082]
[1674096277786,2.24732679,1523.9,1523.6,1.297]
[1674096277998,2.24732679,1523.9,1523.6,13.4513]
[1674096278189,2.24732679,1523.9,1523.6,13.5173]
[1674096278775,0.68813636,1523.9,1523.6,13.5173]
[1674096278942,2.24727888,1523.9,1523.6,17.104154]
[1674096279160,0.68813636,1523.9,1523.6,17.104154]
[1674096279483,1.21485482,1523.9,1523.6,17.104154]
[1674096281352,16.59827163,1524.0,1523.6,23.667554]
[1674096281865,17.42066378,1524.0,1523.6,23.667554]
[1674096282092,15.56606636,1524.0,1523.7,2.3667554]
[1674096282727,7.31586636,1524.0,1523.7,2.3667554]
[1674096283353,0.066,1524.0,1523.7,8.9297254]
[1674096283568,0.83382208,1524.1,1523.8,8.45543254]
[1674096283779,0.83382208,1524.1,1523.8,10.06543254]
[1674096284006,0.14568572,1524.1,1523.8,10.06543254]
[1674096285900,0.14568572,1524.1,1524.0,8.09567]
[1674096286116,0.14568572,1524.1,1524.0,15.98048915]
[1674096287189,0.14568572,1524.1,1524.0,16.98048915]
[1674096287374,0.14568572,1524.1,1524.0,15.98048915]
[1674096287585,0.14568572,1524.1,1524.0,16.98048915]
[1674096287842,0.14568572,1524.1,1524.0,15.98048915]
[1674096288060,0.14568572,1524.1,1524.0,2.85714915]
[1674096288212,0.14568572,1524.1,1524.0,2.79114915]
[1674096289060,0.14568572,1524.1,1524.0,1.25714915]
[1674096289277,0.14568572,1524.1,1523.9,24.4763]
[1674096290942,0.14568572,1524.1,1523.9,21.4763]
[1674096292314,6.70695572,1524.1,1523.9,21.4763]
[1674096292516,6.77295572,1524.1,1523.9,21.4763]
[1674096293378,8.84697001,1524.1,1523.9,21.4763]
[1674096293619,15.40824001,1524.1,1523.9,21.4763]
[1674096293837,8.84697001,1524.1,1523.9,21.4763]
[1674096294411,8.84697001,1524.1,1523.9,12.3004]
[1674096294887,2.28570001,1524.1,1523.9,12.3004]
[1674096295041,0.14568572,1524.1,1523.9,12.3004]
[1674096295246,0.14568572,1524.1,1523.9,18.86803173]
[1674096296333,0.14568572,1524.1,1523.9,18.86504939]
[1674096296544,0.14568572,1524.1,1523.9,25.42715939]
[1674096299250,0.14568572,1524.1,1523.9,26.97515939]
[1674096299742,0.14568572,1524.1,1524.0,3.69751594]
[1674096299872,0.14568572,1524.1,1524.0,15.82085594]
[1674096300251,0.14568572,1524.1,1524.0,15.88685594]
[1674096303246,0.14568572,1524.1,1524.0,17.42085594]
[1674096303507,0.14568572,1524.1,1524.0,21.54979767]
[1674096304923,0.47980255,1524.1,1524.0,21.54979767]
[1674096305555,0.47980255,1524.1,1524.0,13.45412767]
[1674096305766,0.47980255,1524.1,1524.0,10.11987]
[1674096306675,0.47980255,1524.1,1524.0,9.62767]
[1674096307870,0.47980255,1524.1,1524.0,3.066]
[1674096308074,0.47980255,1524.1,1524.0,3.0]
[1674096309139,0.42980255,1524.1,1524.0,3.0]
[1674096311228,0.42980255,1524.1,1524.0,6.75123994]
[1674096311438,0.42980255,1524.1,1524.0,13.37890994]
[1674096312437,0.42980255,1524.1,1524.0,9.62767]
[1674096313705,0.42980255,1524.1,1524.0,3.066]
[1674096313862,0.42980255,1524.1,1524.0,3.0]
[1674096319478,0.42980255,1524.1,1524.0,9.56167]
[1674096319654,0.42980255,1524.1,1524.0,9.62767]
[1674096320010,0.42980255,1524.1,1524.0,14.03505694]
[1674096320223,0.42980255,1524.1,1524.0,3.066]
[1674096320528,0.42980255,1524.1,1524.0,3.0]
[1674096324545,0.42980255,1524.1,1524.0,11.10967]
[1674096324703,0.42980255,1524.1,1524.0,18.37408173]
[1674096324953,0.42980255,1524.1,1524.0,23.65610284]
[1674096325924,0.09568572,1524.1,1524.0,23.65610284]
[1674096331043,0.08282103,1524.1,1524.0,23.65610284]
[1674096331985,0.51500942,1524.1,1524.0,25.19410284]
[1674096332249,0.51500942,1524.1,1524.0,26.67448505]
[1674096332486,0.51500942,1524.1,1524.0,27.16645361]
[1674096332700,0.51500942,1524.1,1524.0,26.29067783]
[1674096333015,0.51500942,1524.1,1524.0,26.29053169]
[1674096333384,0.51500942,1524.1,1524.0,27.16665949]
[1674096333949,0.51500942,1524.1,1524.0,25.68630284]
[1674096336589,0.51500942,1524.1,1524.0,26.2908676]
[1674096337161,0.51500942,1524.1,1524.0,26.67486895]
[1674096338530,0.51500942,1524.1,1524.0,25.7986676]
[1674096339834,0.51500942,1524.1,1524.0,25.79871857]
[1674096340047,0.51500942,1524.1,1524.0,25.19410284]
[1674096340892,0.51500942,1524.1,1524.0,25.79870717]
[1674096341110,0.51500942,1524.1,1524.0,25.19410284]
[1674096343275,0.51500942,1524.1,1524.0,25.79869679]
[1674096343883,0.51500942,1524.1,1524.0,26.67489675]
[1674096344319,0.51500942,1524.1,1524.0,25.79869679]
[1674096344725,0.51500942,1524.1,1524.0,25.19410284]
[1674096344935,0.51500942,1524.1,1524.0,25.79865109]
[1674096345312,0.51500942,1524.1,1524.0,26.6747353]
[1674096346436,0.51500942,1524.1,1524.0,25.79865109]
[1674096346883,0.51500942,1524.1,1524.0,22.71254193]
[1674096347040,0.51500942,1524.1,1524.0,22.10810284]
[1674096347255,0.51500942,1524.1,1524.0,22.71253435]
[1674096347543,0.51500942,1524.1,1524.0,23.5885403]
[1674096348075,0.15709078,1524.2,1524.1,3.00662815]
[1674096348290,0.15709078,1524.2,1524.1,22.49579272]
[1674096348600,0.15709078,1524.2,1524.1,24.75593589]
[1674096349648,0.15709078,1524.2,1524.1,26.30393589]
[1674096350230,0.15709078,1524.2,1524.1,25.6225404]
[1674096351910,0.15709078,1524.2,1524.1,25.60391225]
[1674096352570,0.15709078,1524.2,1524.1,24.05591225]
[1674096362760,0.15709078,1524.2,1524.1,18.45965324]
[1674096363013,0.15709078,1524.2,1524.1,17.85522173]
[1674096363331,0.15709078,1524.2,1524.1,17.21848]
[1674096373391,0.15709078,1524.2,1524.1,10.65724]
[1674096374229,0.15709078,1524.2,1524.1,17.21848]
[1674096374890,0.15331218,1524.2,1524.1,17.21848]
[1674096380370,0.15331218,1524.2,1524.1,21.62917777]
[1674096380522,0.15331218,1524.2,1524.1,21.62915219]
[1674096380737,0.15331218,1524.2,1524.1,21.03959596]
[1674096381193,0.15331218,1524.2,1524.1,21.62919037]
[1674096381475,0.15331218,1524.2,1524.1,21.03959596]
[1674096382848,0.15331218,1524.2,1524.1,21.62916944]
[1674096383207,0.15331218,1524.2,1524.1,21.03959596]
[1674096384847,0.15331218,1524.2,1524.1,21.62907264]
[1674096386889,0.15331218,1524.2,1524.1,20.59907264]
[1674096387407,0.15331218,1524.2,1524.1,20.00959596]
[1674096388718,0.15331218,1524.2,1524.1,20.59905619]
[1674096388961,0.63108244,1524.2,1524.1,20.59905619]
[1674096390343,0.63108244,1524.2,1524.1,20.00959596]
[1674096393082,0.63108244,1524.2,1524.1,20.599177]
[1674096393293,0.63108244,1524.2,1524.1,21.46434919]
[1674096393658,0.63108244,1524.2,1524.1,22.14574468]
[1674096393870,0.63108244,1524.2,1524.1,21.46434919]
[1674096394288,0.63108244,1524.2,1524.1,22.14574468]
[1674096394715,0.63108244,1524.2,1524.1,21.46434919]
[1674096395345,0.63108244,1524.2,1524.1,22.14574468]
[1674096395583,0.63108244,1524.2,1524.1,21.46434919]
[1674096395798,0.63108244,1524.2,1524.1,22.14574468]
[1674096401436,0.63108244,1524.2,1524.1,23.44074468]
[1674096402381,0.63108244,1524.2,1524.1,24.46810681]
[1674096402844,0.63108244,1524.2,1524.1,23.44074468]
[1674096403861,0.63108244,1524.2,1524.1,25.15652749]
[1674096404061,0.63108244,1524.2,1524.1,23.78671132]
[1674096404488,0.63108244,1524.2,1524.1,23.44112525]
[1674096407212,0.63108244,1524.2,1524.1,24.46848738]
[1674096407428,0.63108244,1524.2,1524.1,23.78671132]
[1674096408914,0.62888126,1524.2,1524.1,23.78671132]
[1674096410319,0.16796643,1524.3,1524.2,3.00236627]
[1674096410528,0.16796643,1524.3,1524.2,24.36900144]
[1674096410738,0.16796643,1524.3,1524.2,25.93691536]
[1674096412733,0.16796643,1524.3,1524.2,25.25538899]
[1674096412965,0.16796643,1524.3,1524.2,25.93691536]
[1674096413554,0.16796643,1524.3,1524.2,25.25538899]
[1674096413770,0.16796643,1524.3,1524.2,23.96038899]
[1674096414235,0.16796643,1524.3,1524.2,23.0952168]
[1674096415056,0.16796643,1524.3,1524.2,23.94655691]
[1674096415762,0.16796643,1524.3,1524.2,22.0952168]
[1674096415974,0.16796643,1524.3,1524.2,22.94658813]
[1674096416151,0.16796643,1524.3,1524.2,22.0952168]
[1674096416822,0.16796643,1524.3,1524.2,22.94648785]
[1674096417240,0.16796643,1524.3,1524.2,22.30974612]
[1674096417456,0.16796643,1524.3,1524.2,22.94648785]
[1674096418311,0.16796643,1524.3,1524.2,22.94673586]
[1674096418465,0.16796643,1524.3,1524.2,22.0952168]
[1674096419432,0.16796643,1524.3,1524.2,21.50563576]
[1674096419988,0.16796643,1524.3,1524.2,22.07738637]
[1674096420198,0.16796643,1524.3,1524.2,21.50563576]
[1674096420626,0.16796643,1524.3,1524.2,16.838728]
[1674096420841,1.46296643,1524.3,1524.2,16.838728]
[1674096421149,1.46296643,1524.3,1524.2,16.20198627]
[1674096421361,1.46296643,1524.3,1524.2,13.20198627]
[1674096422596,1.46296643,1524.3,1524.2,16.20198627]
[1674096424558,1.46296643,1524.3,1524.2,9.64117627]
[1674096425460,1.46296643,1524.3,1524.2,16.20198627]
[1674096430388,0.16796643,1524.3,1524.2,16.20198627]
[1674096445237,0.16468058,1524.3,1524.2,16.20198627]
[1674096449750,0.16468058,1524.3,1524.2,16.18762]
[1674096452214,0.16468058,1524.3,1524.2,16.7591187]
[1674096454321,0.16468058,1524.3,1524.2,19.24442633]
[1674096458483,0.16468058,1524.3,1524.2,16.7591187]
[1674096459370,0.16468058,1524.3,1524.2,16.75681961]
[1674096469015,0.16468058,1524.3,1524.2,16.18532091]
[1674096470499,0.16468058,1524.3,1524.2,16.75791388]
[1674096472988,0.16468058,1524.3,1524.2,16.18532091]
[1674096473201,0.16468058,1524.3,1524.2,16.7578787]
[1674096473414,0.16468058,1524.3,1524.2,16.18532091]
[1674096473643,0.16468058,1524.3,1524.2,9.62451091]
[1674096474165,2.24989528,1524.3,1524.2,0.066]
[1674096474481,2.81140527,1524.3,1524.1,6.62724]
[1674096474654,1.295,1524.2,1524.1,6.62724]
[1674096475000,1.295,1524.2,1524.1,9.62724]
[1674096476437,1.51998953,1524.2,1524.1,3.066]
[1674096476649,1.51998953,1524.2,1524.1,3.0]
[1674096480588,0.22498953,1524.2,1524.1,3.0]
[1674096482334,1.51598953,1524.2,1524.0,3.066]
[1674096482583,0.15159895,1524.1,1524.0,3.0]
[1674096483408,1.51598953,1524.2,1524.0,3.0]
[1674096483839,1.51598953,1524.2,1524.0,9.56164]
[1674096483998,1.51598953,1524.2,1524.0,9.62764]
[1674096485817,0.22498953,1524.2,1524.0,9.62764]
[1674096485990,1.56175892,1524.3,1524.0,9.62764]
[1674096486206,1.56175892,1524.3,1524.0,16.18931]
[1674096486460,1.51175892,1524.3,1524.0,16.18931]
[1674096488236,0.11468058,1524.3,1524.0,16.18931]
[1674096488874,0.11468058,1524.3,1524.0,28.30431]
[1674096489112,0.11468058,1524.3,1524.0,29.15708905]
[1674096489304,0.11468058,1524.3,1524.1,1.0]
[1674096489748,0.11468058,1524.3,1524.2,13.12162]
[1674096489917,0.11468058,1524.3,1524.2,18.82794834]
[1674096490138,0.11468058,1524.3,1524.2,18.82784388]
[1674096490748,0.11468058,1524.3,1524.2,20.31666537]
[1674096490962,0.11468058,1524.3,1524.2,20.99819174]
[1674096491181,0.11468058,1524.3,1524.2,24.95527816]
[1674096491380,0.11468058,1524.3,1524.2,28.56264029]
[1674096491839,8.058e-05,1524.3,1524.2,28.56264029]
[1674096492030,8.058e-05,1524.3,1524.2,29.05484029]
[1674096492254,0.16796643,1524.4,1524.3,1.0]
[1674096492433,0.16796643,1524.4,1524.3,21.89318791]
[1674096492643,0.16796643,1524.4,1524.3,23.9401094]
[1674096493203,0.16796643,1524.4,1524.3,32.9370094]
[1674096493913,0.16796643,1524.4,1524.3,46.0722094]
[1674096494109,0.16796643,1524.4,1524.3,45.5801094]
[1674096494672,0.16796643,1524.4,1524.3,44.72802964]
[1674096495367,0.16796643,1524.4,1524.3,44.09128791]
[1674096495581,0.16796643,1524.4,1524.3,41.22434403]
[1674096513758,0.165361,1524.4,1524.3,41.22434403]
[1674096513970,0.165361,1524.4,1524.3,38.31886]
[1674096515836,0.165361,1524.4,1524.3,22.76158]
[1674096516178,0.165361,1524.4,1524.3,16.2012]
[1674096516697,0.165361,1524.4,1524.3,13.2012]
[1674096517274,0.165361,1524.4,1524.3,6.62638]
[1674096517532,0.32819374,1524.4,1524.3,6.62638]
[1674096521118,1.62219374,1524.4,1524.3,0.066]
[1674096521338,1.62219374,1524.4,1524.2,3.0]
[1674096529072,1.62219374,1524.4,1524.1,18.74267]
[1674096529415,0.16221937,1524.3,1524.1,18.74267]
[1674096532980,1.459361,1524.4,1524.1,18.74267]
[1674096533202,1.459361,1524.4,1524.1,25.30391]
[1674096533203,0.165361,1524.4,1524.1,25.30391]
[1674096540843,0.165361,1524.4,1524.1,25.30073255]
[1674096542342,0.165361,1524.4,1524.1,18.73949255]
[1674096542519,1.74121738,1524.4,1524.1,18.73949255]
[1674096543851,1.74121738,1524.4,1524.1,25.30073255]
[1674096544149,0.165361,1524.4,1524.1,25.29873255]
[1674096544302,0.165361,1524.4,1524.1,25.30073255]
[1674096546043,0.165361,1524.4,1524.1,26.15344647]
[1674096547349,0.165361,1524.4,1524.1,25.30073255]
[1674096547593,0.165361,1524.4,1524.1,26.15366334]
[1674096547812,0.165361,1524.4,1524.2,2.61536633]
[1674096548035,0.165361,1524.4,1524.3,13.12076]
[1674096548353,0.165361,1524.4,1524.3,13.18676]
[1674096549247,0.165361,1524.4,1524.3,6.62638]
[1674096551094,0.165361,1524.4,1524.3,13.18676]
[1674096556856,0.165361,1524.4,1524.3,0.066]
[1674096557105,0.39700738,1524.4,1524.2,6.6265]
[1674096558794,0.39700738,1524.4,1524.2,0.066]
[1674096558958,0.39700738,1524.4,1524.1,33.90876255]
[1674096563405,0.165361,1524.4,1524.1,33.90876255]
[1674096564244,0.165361,1524.4,1524.2,0.57336049]
[1674096564615,0.1633569,1524.4,1524.3,6.56038]
[1674096564777,0.1633569,1524.4,1524.3,13.18676]
[1674096565823,0.14588758,1524.4,1524.3,13.18676]
[1674096566908,0.64532304,1524.4,1524.3,13.18676]
[1674096570342,0.64532304,1524.4,1524.3,16.24688041]
[1674096570542,0.64532304,1524.4,1524.3,20.31220442]
[1674096571186,0.64532304,1524.4,1524.3,19.31220442]
[1674096573959,0.64532304,1524.4,1524.3,20.84721289]
[1674096574116,0.64532304,1524.4,1524.3,20.16568652]
[1674096574327,0.64532304,1524.4,1524.3,19.31220442]
[1674096574567,0.64532304,1524.4,1524.3,20.16568652]
[1674096577159,0.64532304,1524.4,1524.3,19.67358652]
[1674096578213,0.64532304,1524.4,1524.3,18.82010442]
[1674096578425,0.64532304,1524.4,1524.3,19.67358652]
[1674096579269,0.64532304,1524.4,1524.3,18.82010442]
[1674096584671,0.64532304,1524.4,1524.3,19.66963756]
[1674096586641,0.64532304,1524.4,1524.3,18.81703104]
[1674096590100,0.64532304,1524.4,1524.3,16.75691063]
[1674096592399,0.64532304,1524.4,1524.3,16.18368662]
[1674096592879,0.64532304,1524.4,1524.3,16.75616912]
[1674096593095,0.64532304,1524.4,1524.3,16.18368662]
[1674096593250,0.64532304,1524.4,1524.3,16.75615342]
[1674096594098,0.64532304,1524.4,1524.3,20.00004626]
[1674096594726,0.64532304,1524.4,1524.3,20.85265278]
[1674096597662,0.64532304,1524.4,1524.3,27.64746943]
[1674096597876,0.16796643,1524.5,1524.4,0.64990697]
[1674096598145,0.16796643,1524.5,1524.4,24.77133962]
[1674096598352,0.16796643,1524.5,1524.4,27.34984687]
[1674096598821,0.16796643,1524.5,1524.4,26.32668787]
[1674096600438,0.16796643,1524.5,1524.4,27.34984687]
[1674096601183,0.16796643,1524.5,1524.4,26.32668787]
[1674096603341,0.16796643,1524.5,1524.4,30.26902009]
[1674096603566,0.16796643,1524.5,1524.4,26.32668787]
[1674096604398,0.16796643,1524.5,1524.4,25.68994614]
[1674096604610,0.16796643,1524.5,1524.4,26.32668787]
[1674096604819,0.16796643,1524.5,1524.4,27.34984687]
[1674096605344,0.16796643,1524.5,1524.4,26.32668787]
[1674096605605,0.16796643,1524.5,1524.4,27.34984687]
[1674096606707,0.16796643,1524.5,1524.4,26.66772733]
[1674096606913,0.16796643,1524.5,1524.4,27.35002074]
[1674096608495,0.16796643,1524.5,1524.4,30.61005955]
[1674096609027,0.16796643,1524.5,1524.4,27.35003748]
[1674096609892,0.16796643,1524.5,1524.4,26.32687848]
[1674096610124,0.16796643,1524.5,1524.4,25.32687848]
[1674096611484,0.16796643,1524.5,1524.4,24.03187848]
[1674096613386,0.16796643,1524.5,1524.4,22.73687848]
[1674096613609,0.16796643,1524.5,1524.4,22.05456833]
[1674096613821,0.16796643,1524.5,1524.4,22.73687848]
[1674096614415,0.16796643,1524.5,1524.4,22.10013675]
[1674096615555,0.16796643,1524.5,1524.4,21.4178266]
[1674096617625,0.16796643,1524.5,1524.4,22.10013675]
[1674096619154,0.16584858,1524.5,1524.4,22.10013675]
[1674096619696,0.16584858,1524.5,1524.4,22.73687848]
[1674096624611,0.16584858,1524.5,1524.4,22.10013675]
[1674096624823,0.16584858,1524.5,1524.4,21.4178266]
[1674096625365,0.16584858,1524.5,1524.4,22.10013675]
[1674096626191,0.16584858,1524.5,1524.4,21.4178266]
[1674096626403,0.16584858,1524.5,1524.4,22.10013675]
[1674096627815,0.16584858,1524.5,1524.4,21.4178266]
[1674096627974,0.16584858,1524.5,1524.4,18.26088029]
[1674096628518,0.16584858,1524.5,1524.4,17.40827377]
[1674096629131,0.16584858,1524.5,1524.4,17.40788149]
[1674096630499,0.16584858,1524.5,1524.4,18.26034052]
[1674096631546,0.16584858,1524.5,1524.4,17.40788149]
[1674096632031,0.64433624,1524.5,1524.4,17.40788149]
[1674096632407,0.72389357,1524.5,1524.4,16.83580697]
[1674096632598,0.72389357,1524.5,1524.4,7.27585697]
[1674096635119,0.72389357,1524.5,1524.4,10.27585697]
[1674096641849,0.64433624,1524.5,1524.4,10.27585697]
[1674096642281,0.64433624,1524.5,1524.4,16.83580697]
[1674096643586,0.64433624,1524.5,1524.4,17.40771363]
[1674096643803,0.64433624,1524.5,1524.4,16.83580697]
[1674096644928,0.64433624,1524.5,1524.4,16.1859]
[1674096654176,0.64433624,1524.5,1524.4,16.75799863]
[1674096654630,0.64153653,1524.5,1524.4,17.61037608]
[1674096654843,0.64153653,1524.5,1524.4,21.38971126]
[1674096657176,0.64153653,1524.5,1524.4,21.38671636]
[1674096661059,0.64153653,1524.5,1524.4,17.60738118]
[1674096661387,0.64153653,1524.5,1524.4,16.75500373]
[1674096667086,0.64153653,1524.5,1524.4,7.19558622]
[1674096667304,1.32967289,1524.5,1524.4,0.066]
[1674096667603,2.18622054,1524.5,1524.3,3.0]
[1674096667798,2.578,1524.4,1524.3,3.0]
[1674096668004,1.283,1524.4,1524.3,3.0]
[1674096669036,1.77332717,1524.4,1524.3,3.0]
[1674096669233,1.99463387,1524.4,1524.3,3.0]
[1674096678817,0.71163387,1524.4,1524.3,3.0]
[1674096679062,0.49032717,1524.4,1524.3,3.0]
[1674096679288,0.49032717,1524.4,1524.3,20.12076]
[1674096679499,0.49032717,1524.4,1524.3,19.18676]
[1674096679653,0.49032717,1524.4,1524.3,19.74020035]
[1674096680305,0.49032717,1524.4,1524.3,19.18676]
[1674096680514,0.49032717,1524.4,1524.3,19.74021167]
[1674096680929,0.49032717,1524.4,1524.3,25.27981618]
[1674096681147,0.49032717,1524.4,1524.3,29.90445855]
[1674096681412,0.48695565,1524.4,1524.3,29.90445855]
[1674096681726,0.48695565,1524.4,1524.3,26.59886806]
[1674096682083,0.48695565,1524.4,1524.3,25.91655791]
[1674096683526,0.48695565,1524.4,1524.3,25.07841158]
[1674096683703,0.48695565,1524.4,1524.3,24.44166985]
[1674096687334,0.48695565,1524.4,1524.3,19.18676]
[1674096687548,1.77295565,1524.4,1524.3,12.62638]
[1674096689374,1.77295565,1524.4,1524.3,6.066]
[1674096698606,1.77295565,1524.4,1524.3,12.62638]
[1674096700314,0.48695565,1524.4,1524.3,12.62638]
[1674096704437,0.48695565,1524.4,1524.3,19.18676]
[1674096705531,0.48433362,1524.4,1524.3,24.45115706]
[1674096705897,0.48433362,1524.4,1524.3,23.61275927]
[1674096706157,0.48433362,1524.4,1524.3,24.45108543]
[1674096711207,0.43433362,1524.4,1524.3,24.45108543]
[1674096712084,0.43433362,1524.4,1524.3,25.13339558]
[1674096716656,0.43433362,1524.4,1524.3,24.45108543]
[1674096720233,0.43433362,1524.4,1524.3,37.2538868]
[1674096720494,0.43433362,1524.4,1524.3,39.79431838]
[1674096720703,0.43433362,1524.4,1524.3,40.47696696]
[1674096721228,0.43433362,1524.4,1524.3,39.79431838]
[1674096722499,0.43433362,1524.4,1524.3,28.08469093]
[1674096722644,0.43433362,1524.4,1524.3,27.06153193]
[1674096723540,0.43433362,1524.4,1524.3,26.4247902]
[1674096723691,0.43433362,1524.4,1524.3,27.06153193]
[1674096725918,0.43433362,1524.4,1524.3,26.37882716]
[1674096726555,0.43433362,1524.4,1524.3,25.08782716]
[1674096728226,0.43433362,1524.4,1524.3,21.21521716]
[1674096728435,0.43433362,1524.4,1524.3,20.376891]
[1674096728909,0.43433362,1524.4,1524.3,21.21531659]
[1674096729334,0.43433362,1524.4,1524.3,20.376891]
[1674096729697,0.43433362,1524.4,1524.3,19.74014927]
[1674096731016,0.43433362,1524.4,1524.3,12.62638]
[1674096734475,0.43433362,1524.4,1524.3,13.17976241]
[1674096735087,0.43433362,1524.4,1524.3,3.066]
[1674096735279,0.62347187,1524.4,1524.3,3.0]
[1674096743300,2.60660823,1524.4,1524.3,2.99616531]
[1674096743516,13.74709496,1524.4,1524.1,0.066]
[1674096743766,13.74709496,1524.4,1523.7,0.066]
[1674096743767,4.28099102,1524.3,1523.7,0.066]
[1674096743998,21.37881856,1524.2,1523.6,28.80583933]
[1674096744179,21.89520367,1524.2,1523.6,12.89754927]
[1674096744371,6.56189,1524.0,1523.6,12.09598725]
[1674096744584,1.294,1523.8,1523.6,0.11418725]
[1674096744780,1.295,1523.7,1523.6,0.04818725]
[1674096745004,9.27737,1523.7,1523.6,0.04818725]
[1674096745194,9.34337,1523.7,1523.6,0.04818725]
[1674096745410,9.83567,1523.7,1523.6,0.04818725]
[1674096747294,16.39864,1523.7,1523.6,0.04818725]
[1674096747508,16.62864,1523.7,1523.6,0.04818725]
[1674096751038,1.9777,1523.7,1523.6,0.04818725]
[1674096751352,1.9117,1523.7,1523.6,0.04818725]
[1674096752676,1.4194,1523.7,1523.6,0.04818725]
[1674096757736,1.9117,1523.7,1523.6,0.04818725]
[1674096758315,1.4194,1523.7,1523.6,0.04818725]
[1674096759467,7.98237,1523.7,1523.6,0.04818725]
[1674096759620,8.04837,1523.7,1523.6,0.04818725]
[1674096760314,15.90234,1523.7,1523.6,0.04818725]
[1674096761092,16.13234,1523.7,1523.6,0.04818725]
[1674096761363,15.90234,1523.7,1523.6,0.04818725]
[1674096763633,16.41934,1523.7,1523.6,0.04818725]
[1674096764423,9.85637,1523.7,1523.6,0.04818725]
[1674096764596,9.85637,1523.7,1523.6,0.04570914]
[1674096765855,3.2934,1523.7,1523.6,0.04570914]
[1674096766068,3.2274,1523.7,1523.6,0.04570914]
[1674096766633,1.6784,1523.7,1523.6,0.04570914]
[1674096767466,3.2274,1523.7,1523.6,0.04570914]
[1674096768202,16.58334,1523.7,1523.6,0.04570914]
[1674096768527,16.64934,1523.7,1523.6,0.04570914]
[1674096770304,17.14164,1523.7,1523.6,0.04570914]
[1674096772359,17.13856894,1523.7,1523.6,0.04570914]
[1674096774172,20.43031653,1523.7,1523.6,0.04570914]
[1674096774588,29.99328653,1523.7,1523.6,0.04570914]
[1674096774802,33.49330166,1523.7,1523.5,0.04360688]
[1674096775020,27.23417624,1523.6,1523.5,0.04360688]
[1674096775207,27.30017624,1523.6,1523.5,0.04360688]
[1674096775859,28.61325184,1523.6,1523.5,0.04360688]